[Event "Early-Titled-Tuesday-Blitz-October-03-2023"]
[Site "Chess.com"]
[Date "2023.10.03"]
[Round "9"]
[White "Doudou2015"]
[Black "Alenzer"]
[Result "0-1"]
[WhiteElo "2162"]
[BlackElo "2097"]
[TimeControl "180+1"]
[EndTime "9:46:28 PDT"]
[Termination "Alenzer won by resignation"]

1. b3 {[%clk 0:03:00.9]} 1... d5 {[%clk 0:02:57.4]} 2. Bb2 {[%clk 0:03:01.8]}
2... c5 {[%clk 0:02:55.7]} 3. e3 {[%clk 0:03:02]} 3... Nc6 {[%clk 0:02:52.3]} 4.
f4 {[%clk 0:03:01.2]} 4... e6 {[%clk 0:02:47.3]} 5. Nf3 {[%clk 0:03:01.5]} 5...
Nf6 {[%clk 0:02:44.6]} 6. Bb5 {[%clk 0:03:01.6]} 6... Bd7 {[%clk 0:02:43.6]} 7.
O-O {[%clk 0:03:01.1]} 7... a6 {[%clk 0:02:43.9]} 8. Be2 {[%clk 0:03:00.4]} 8...
Be7 {[%clk 0:02:42.6]} 9. h3 {[%clk 0:03:00.9]} 9... O-O {[%clk 0:02:41.4]} 10.
d3 {[%clk 0:03:01.5]} 10... Re8 {[%clk 0:02:38.7]} 11. Nbd2 {[%clk 0:03:01.9]}
11... b5 {[%clk 0:02:37.6]} 12. Qe1 {[%clk 0:03:02.3]} 12... Bd6 {[%clk
0:02:23.4]} 13. a3 {[%clk 0:03:01.8]} 13... e5 {[%clk 0:02:16.7]} 14. f5 {[%clk
0:02:48.5]} 14... Bxf5 {[%clk 0:02:02.1]} 15. Ng5 {[%clk 0:02:48.8]} 15... Bg6
{[%clk 0:01:58.5]} 16. Qf2 {[%clk 0:02:48]} 16... h6 {[%clk 0:01:56.3]} 17. Ngf3
{[%clk 0:02:45.5]} 17... Nh5 {[%clk 0:01:43.1]} 18. Nh4 {[%clk 0:02:43.4]} 18...
Nf6 {[%clk 0:01:39]} 19. Nxg6 {[%clk 0:02:39.7]} 19... fxg6 {[%clk 0:01:39.1]}
20. e4 {[%clk 0:02:35.5]} 20... d4 {[%clk 0:01:36.3]} 21. Qg3 {[%clk 0:02:32]}
21... Kh7 {[%clk 0:01:35.1]} 22. Rae1 {[%clk 0:02:14.3]} 22... Ne7 {[%clk
0:01:33.9]} 23. Nf3 {[%clk 0:02:09.8]} 23... g5 {[%clk 0:01:33.3]} 24. Bc1
{[%clk 0:02:08.5]} 24... Ng6 {[%clk 0:01:30.9]} 25. h4 {[%clk 0:02:04.8]} 25...
g4 {[%clk 0:01:17.4]} 26. Nh2 {[%clk 0:02:00.7]} 26... h5 {[%clk 0:01:16.8]} 27.
Rf5 {[%clk 0:01:54.4]} 27... Nf4 {[%clk 0:01:15]} 28. Bd1 {[%clk 0:01:45.5]}
28... g6 {[%clk 0:01:14.4]} 29. Rg5 {[%clk 0:01:43.1]} 29... Kg7 {[%clk
0:00:43.1]} 30. Rf1 {[%clk 0:01:32.2]} 30... Nh7 {[%clk 0:00:41]} 31. Rxf4
{[%clk 0:01:17.2]} 31... exf4 {[%clk 0:00:40]} 32. Bxf4 {[%clk 0:01:16.9]} 32...
Bxf4 {[%clk 0:00:36]} 33. Qxf4 {[%clk 0:01:17.8]} 33... Nxg5 {[%clk 0:00:36]}
34. hxg5 {[%clk 0:01:18.5]} 34... Rf8 {[%clk 0:00:34.4]} 35. Qe5+ {[%clk
0:01:18.2]} 35... Kh7 {[%clk 0:00:34.9]} 36. Qxc5 {[%clk 0:01:13.8]} 36... Rc8
{[%clk 0:00:33.3]} 37. Qe5 {[%clk 0:01:09.8]} 37... Qd7 {[%clk 0:00:17.9]} 38.
Nf1 {[%clk 0:01:02.9]} 38... Rf7 {[%clk 0:00:17.2]} 39. Ng3 {[%clk 0:01:02.8]}
39... Rcf8 {[%clk 0:00:17.3]} 40. Kh2 {[%clk 0:01:00.6]} 40... Rf2 {[%clk
0:00:16.9]} 41. Qc5 {[%clk 0:00:42.2]} 41... Rd2 {[%clk 0:00:14.6]} 42. Qxf8
{[%clk 0:00:41]} 42... Rxd1 {[%clk 0:00:13.1]} 43. e5 {[%clk 0:00:39.5]} 43...
Re1 {[%clk 0:00:11.8]} 44. Qf6 {[%clk 0:00:38.5]} 44... h4 {[%clk 0:00:10.9]}
45. Ne4 {[%clk 0:00:37]} 45... g3+ {[%clk 0:00:10.5]} 46. Nxg3 {[%clk
0:00:36.6]} 46... hxg3+ {[%clk 0:00:10.6]} 47. Kxg3 {[%clk 0:00:37.5]} 47...
Re3+ {[%clk 0:00:11]} 48. Kf2 {[%clk 0:00:36.1]} 48... Qf5+ {[%clk 0:00:11.2]}
49. Qxf5 {[%clk 0:00:35.6]} 49... gxf5 {[%clk 0:00:10.9]} 0-1

[Event "Early-Titled-Tuesday-Blitz-October-03-2023"]
[Site "Chess.com"]
[Date "2023.10.03"]
[Round "9"]
[White "Anton_Demchenko"]
[Black "BlueWizzard"]
[Result "1-0"]
[WhiteElo "2930"]
[BlackElo "2958"]
[TimeControl "180+1"]
[EndTime "9:46:29 PDT"]
[Termination "Anton_Demchenko won by resignation"]

1. e4 {[%clk 0:02:59.8]} 1... g6 {[%clk 0:02:54]} 2. d4 {[%clk 0:02:59.2]} 2...
d5 {[%clk 0:02:54.2]} 3. exd5 {[%clk 0:02:58.3]} 3... Qxd5 {[%clk 0:02:55.1]} 4.
Nc3 {[%clk 0:02:57.6]} 4... Qd8 {[%clk 0:02:55.6]} 5. Bf4 {[%clk 0:02:57.8]}
5... Bg7 {[%clk 0:02:55.9]} 6. Qd2 {[%clk 0:02:57.9]} 6... c6 {[%clk 0:02:53.2]}
7. O-O-O {[%clk 0:02:57.5]} 7... Bf5 {[%clk 0:02:50.4]} 8. Nge2 {[%clk
0:02:42.9]} 8... Nf6 {[%clk 0:02:47.4]} 9. f3 {[%clk 0:02:39.1]} 9... Qa5 {[%clk
0:02:43.3]} 10. Kb1 {[%clk 0:02:34.4]} 10... Nbd7 {[%clk 0:02:41]} 11. g4 {[%clk
0:02:27.2]} 11... Be6 {[%clk 0:02:41.1]} 12. Bh6 {[%clk 0:02:20]} 12... Bxh6
{[%clk 0:02:36.9]} 13. Qxh6 {[%clk 0:02:20.6]} 13... b5 {[%clk 0:02:28.8]} 14.
Nc1 {[%clk 0:02:07]} 14... b4 {[%clk 0:02:26.3]} 15. N3e2 {[%clk 0:02:04.6]}
15... Nd5 {[%clk 0:02:13.9]} 16. Nf4 {[%clk 0:01:41.3]} 16... Nc3+ {[%clk
0:01:10.9]} 17. bxc3 {[%clk 0:01:41.2]} 17... bxc3 {[%clk 0:01:11.4]} 18. Nb3
{[%clk 0:01:28.3]} 18... Qa3 {[%clk 0:00:50.4]} 19. Nd3 {[%clk 0:01:27.8]} 19...
a5 {[%clk 0:00:50.6]} 20. Qc1 {[%clk 0:01:23.9]} 20... Qd6 {[%clk 0:00:45.9]}
21. Ka1 {[%clk 0:01:22.7]} 21... Rb8 {[%clk 0:00:37.8]} 22. Ndc5 {[%clk
0:00:51.5]} 22... a4 {[%clk 0:00:34.4]} 23. Nxa4 {[%clk 0:00:43.5]} 23... Qb4
{[%clk 0:00:33.4]} 24. Nac5 {[%clk 0:00:41.8]} 24... O-O {[%clk 0:00:25.7]} 25.
Nxe6 {[%clk 0:00:40.2]} 25... fxe6 {[%clk 0:00:26.6]} 26. Qe3 {[%clk 0:00:39.8]}
26... Ra8 {[%clk 0:00:19.9]} 27. Kb1 {[%clk 0:00:03.2]} 27... Nf6 {[%clk
0:00:17.4]} 28. Qxe6+ {[%clk 0:00:02.8]} 28... Kh8 {[%clk 0:00:17.9]} 29. Qc4
{[%clk 0:00:03.4]} 29... Qa3 {[%clk 0:00:17.3]} 30. Qxc3 {[%clk 0:00:04.1]}
30... Nd5 {[%clk 0:00:17.3]} 31. Qb2 {[%clk 0:00:04.5]} 31... Qb4 {[%clk
0:00:18]} 32. Rd3 {[%clk 0:00:04]} 32... Qe1+ {[%clk 0:00:18.3]} 33. Qc1 {[%clk
0:00:04.4]} 33... Nc3+ {[%clk 0:00:16.7]} 34. Rxc3 {[%clk 0:00:03.3]} 34... Qxc3
{[%clk 0:00:17.6]} 35. Bd3 {[%clk 0:00:03]} 35... Rxf3 {[%clk 0:00:17]} 36. Qb2
{[%clk 0:00:03.4]} 36... Qb4 {[%clk 0:00:14.3]} 37. d5+ {[%clk 0:00:03.8]} 37...
Rf6 {[%clk 0:00:14.2]} 38. dxc6 {[%clk 0:00:04]} 38... Rc8 {[%clk 0:00:15]} 39.
Rd1 {[%clk 0:00:03.7]} 39... Rxc6 {[%clk 0:00:13.3]} 40. g5 {[%clk 0:00:04.3]}
1-0

[Event "Early-Titled-Tuesday-Blitz-October-03-2023"]
[Site "Chess.com"]
[Date "2023.10.03"]
[Round "9"]
[White "Mysterio47"]
[Black "deribas12345"]
[Result "1-0"]
[WhiteElo "2719"]
[BlackElo "2586"]
[TimeControl "180+1"]
[EndTime "9:46:29 PDT"]
[Termination "Mysterio47 won by resignation"]

1. e4 {[%clk 0:03:00.9]} 1... e6 {[%clk 0:02:59.6]} 2. d4 {[%clk 0:02:58.9]}
2... d5 {[%clk 0:02:58.9]} 3. Nc3 {[%clk 0:02:59.5]} 3... Nf6 {[%clk 0:02:58.5]}
4. e5 {[%clk 0:03:00.1]} 4... Ne4 {[%clk 0:02:58.6]} 5. Nxe4 {[%clk 0:02:59.7]}
5... dxe4 {[%clk 0:02:59]} 6. Bc4 {[%clk 0:03:00.1]} 6... a6 {[%clk 0:02:58.1]}
7. a4 {[%clk 0:02:58.9]} 7... b6 {[%clk 0:02:56.9]} 8. Ne2 {[%clk 0:02:59.2]}
8... Bb7 {[%clk 0:02:56.2]} 9. O-O {[%clk 0:02:59.1]} 9... c5 {[%clk 0:02:56]}
10. Be3 {[%clk 0:02:47.6]} 10... cxd4 {[%clk 0:02:53.1]} 11. Qxd4 {[%clk
0:02:42.4]} 11... Qxd4 {[%clk 0:02:33.3]} 12. Bxd4 {[%clk 0:02:40.2]} 12... Nc6
{[%clk 0:02:28.3]} 13. Bxb6 {[%clk 0:02:36]} 13... Nxe5 {[%clk 0:02:26.7]} 14.
Bb3 {[%clk 0:02:36.1]} 14... Be7 {[%clk 0:02:20]} 15. Bd4 {[%clk 0:02:35.3]}
15... Bf6 {[%clk 0:02:18.1]} 16. a5 {[%clk 0:02:32.6]} 16... O-O {[%clk
0:02:16.5]} 17. Rfd1 {[%clk 0:02:31.8]} 17... Rac8 {[%clk 0:02:09.4]} 18. Nc3
{[%clk 0:02:15.6]} 18... h6 {[%clk 0:01:55.6]} 19. Na4 {[%clk 0:02:13.4]} 19...
Ng4 {[%clk 0:01:38.5]} 20. Nb6 {[%clk 0:02:08]} 20... Rc7 {[%clk 0:01:38.3]} 21.
h3 {[%clk 0:02:04.6]} 21... Bxd4 {[%clk 0:01:19.4]} 22. Rxd4 {[%clk 0:02:05.5]}
22... Nf6 {[%clk 0:01:19.9]} 23. Rad1 {[%clk 0:02:01.9]} 23... g6 {[%clk
0:00:58.5]} 24. c4 {[%clk 0:01:45.9]} 24... Rc5 {[%clk 0:00:57.5]} 25. Ra1
{[%clk 0:01:41.1]} 25... Rg5 {[%clk 0:00:37.8]} 26. h4 {[%clk 0:01:22.2]} 26...
Rg4 {[%clk 0:00:33.8]} 27. Bd1 {[%clk 0:01:15.1]} 27... Rf4 {[%clk 0:00:20.7]}
28. g3 {[%clk 0:01:12]} 28... Rf5 {[%clk 0:00:20.6]} 29. b4 {[%clk 0:01:09.9]}
29... Kg7 {[%clk 0:00:18.6]} 30. Be2 {[%clk 0:01:04]} 30... g5 {[%clk
0:00:18.6]} 31. Nd7 {[%clk 0:00:50.8]} 31... Rh8 {[%clk 0:00:13]} 32. Nxf6
{[%clk 0:00:46.2]} 32... Kxf6 {[%clk 0:00:13.9]} 33. h5 {[%clk 0:00:46.5]} 33...
e3 {[%clk 0:00:08.9]} 34. fxe3 {[%clk 0:00:43.9]} 34... Re5 {[%clk 0:00:09.4]}
35. Rf1+ {[%clk 0:00:43.1]} 35... Ke7 {[%clk 0:00:09.3]} 36. Kf2 {[%clk
0:00:39.5]} 36... Rc8 {[%clk 0:00:08.5]} 37. Rfd1 {[%clk 0:00:38.8]} 37... Rf5+
{[%clk 0:00:07.7]} 38. Ke1 {[%clk 0:00:38.9]} 38... Rc7 {[%clk 0:00:08]} 39. b5
{[%clk 0:00:39.3]} 39... axb5 {[%clk 0:00:07.9]} 40. cxb5 {[%clk 0:00:40.2]}
40... Re5 {[%clk 0:00:08.2]} 41. b6 {[%clk 0:00:40.1]} 41... Rc2 {[%clk
0:00:06.8]} 42. Rd7+ {[%clk 0:00:38.8]} 42... Kf6 {[%clk 0:00:07.2]} 43. Rxb7
{[%clk 0:00:38.1]} 43... Rxe3 {[%clk 0:00:07.4]} 44. Rd2 {[%clk 0:00:38.7]}
44... Rc1+ {[%clk 0:00:07.3]} 45. Kf2 {[%clk 0:00:39.1]} 45... Re5 {[%clk
0:00:07.5]} 46. Rbd7 {[%clk 0:00:32.9]} 46... Rf5+ {[%clk 0:00:07.3]} 47. Kg2
{[%clk 0:00:33.3]} 47... Ra1 {[%clk 0:00:06.9]} 48. b7 {[%clk 0:00:33.3]} 1-0

[Event "Early-Titled-Tuesday-Blitz-October-03-2023"]
[Site "Chess.com"]
[Date "2023.10.03"]
[Round "9"]
[White "Mikhail_Golubev"]
[Black "Itk04"]
[Result "0-1"]
[WhiteElo "2607"]
[BlackElo "2738"]
[TimeControl "180+1"]
[EndTime "9:46:31 PDT"]
[Termination "Itk04 won by resignation"]

1. e4 {[%clk 0:02:54.3]} 1... e6 {[%clk 0:02:51.9]} 2. d4 {[%clk 0:02:53.5]}
2... d5 {[%clk 0:02:52.3]} 3. Nc3 {[%clk 0:02:54.2]} 3... Bb4 {[%clk 0:02:52.3]}
4. e5 {[%clk 0:02:54]} 4... c5 {[%clk 0:02:52.6]} 5. a3 {[%clk 0:02:54]} 5...
Bxc3+ {[%clk 0:02:53.2]} 6. bxc3 {[%clk 0:02:54.7]} 6... Qa5 {[%clk 0:02:54.1]}
7. Bd2 {[%clk 0:02:53]} 7... Qa4 {[%clk 0:02:54.3]} 8. h4 {[%clk 0:02:49]} 8...
Ne7 {[%clk 0:02:30.6]} 9. h5 {[%clk 0:02:47]} 9... h6 {[%clk 0:02:31.2]} 10. Rh3
{[%clk 0:02:31.8]} 10... b6 {[%clk 0:02:12.1]} 11. Qg4 {[%clk 0:02:13.5]} 11...
Kf8 {[%clk 0:02:07.9]} 12. Rf3 {[%clk 0:01:54.1]} 12... Bd7 {[%clk 0:01:24.9]}
13. Qf4 {[%clk 0:01:34.4]} 13... Be8 {[%clk 0:01:21.8]} 14. Bd3 {[%clk
0:01:33.8]} 14... Kg8 {[%clk 0:01:06.3]} 15. Nh3 {[%clk 0:01:33.3]} 15... c4
{[%clk 0:01:00.2]} 16. Bg6 {[%clk 0:01:31.5]} 16... fxg6 {[%clk 0:00:47.6]} 17.
Qf8+ {[%clk 0:01:14.4]} 17... Kh7 {[%clk 0:00:47.6]} 18. Qxe7 {[%clk 0:01:07.9]}
18... Qd7 {[%clk 0:00:21.6]} 19. hxg6+ {[%clk 0:00:36]} 19... Bxg6 {[%clk
0:00:22.5]} 20. Qh4 {[%clk 0:00:35.2]} 20... Nc6 {[%clk 0:00:16.8]} 21. O-O-O
{[%clk 0:00:29.3]} 21... Ne7 {[%clk 0:00:12.2]} 22. Kb2 {[%clk 0:00:16.8]} 22...
Qb5+ {[%clk 0:00:07.4]} 23. Ka1 {[%clk 0:00:14.9]} 23... Nf5 {[%clk 0:00:02.6]}
24. Rxf5 {[%clk 0:00:11]} 24... Bxf5 {[%clk 0:00:02]} 25. Rc1 {[%clk 0:00:09.6]}
25... Qa4 {[%clk 0:00:01.5]} 26. Kb2 {[%clk 0:00:09.1]} 26... Qb5+ {[%clk
0:00:01.6]} 27. Ka2 {[%clk 0:00:06.9]} 27... Kg8 {[%clk 0:00:02.5]} 28. Qe7
{[%clk 0:00:05.1]} 28... Re8 {[%clk 0:00:01.6]} 29. Qb7 {[%clk 0:00:02.3]} 29...
Bxc2 {[%clk 0:00:02]} 30. Rxc2 {[%clk 0:00:01.2]} 30... Qb3+ {[%clk 0:00:02.5]}
31. Ka1 {[%clk 0:00:02]} 31... Qxc2 {[%clk 0:00:03.4]} 32. Qd7 {[%clk
0:00:02.1]} 32... Kh7 {[%clk 0:00:02.7]} 33. Nf4 {[%clk 0:00:02.2]} 33... Qxd2
{[%clk 0:00:02]} 34. Nh5 {[%clk 0:00:02.5]} 34... Qc1+ {[%clk 0:00:02.3]} 35.
Ka2 {[%clk 0:00:02.6]} 35... Qc2+ {[%clk 0:00:03]} 36. Ka1 {[%clk 0:00:03.3]}
36... Qd1+ {[%clk 0:00:03.8]} 37. Ka2 {[%clk 0:00:03.7]} 37... Qxh5 {[%clk
0:00:04.7]} 0-1

[Event "Early-Titled-Tuesday-Blitz-October-03-2023"]
[Site "Chess.com"]
[Date "2023.10.03"]
[Round "9"]
[White "PeshkaCh"]
[Black "SashaKuzhilniy"]
[Result "1-0"]
[WhiteElo "2802"]
[BlackElo "2635"]
[TimeControl "180+1"]
[EndTime "9:46:40 PDT"]
[Termination "PeshkaCh won on time"]

1. Nf3 {[%clk 0:03:00.9]} 1... g6 {[%clk 0:02:58.9]} 2. d4 {[%clk 0:03:00.5]}
2... Bg7 {[%clk 0:02:59.8]} 3. g3 {[%clk 0:03:00.6]} 3... Nf6 {[%clk 0:02:58.5]}
4. Bg2 {[%clk 0:03:01.1]} 4... O-O {[%clk 0:02:58.8]} 5. O-O {[%clk 0:03:01.8]}
5... d6 {[%clk 0:02:59]} 6. c4 {[%clk 0:03:02.4]} 6... c5 {[%clk 0:02:59]} 7.
Nc3 {[%clk 0:03:02.7]} 7... Nc6 {[%clk 0:02:59.2]} 8. b3 {[%clk 0:03:02.6]} 8...
Bg4 {[%clk 0:02:55.6]} 9. dxc5 {[%clk 0:02:56.4]} 9... dxc5 {[%clk 0:02:49]} 10.
Be3 {[%clk 0:02:56.4]} 10... Qc8 {[%clk 0:02:39.4]} 11. Rc1 {[%clk 0:02:53.2]}
11... b6 {[%clk 0:02:36.5]} 12. Nd5 {[%clk 0:02:51.2]} 12... Rd8 {[%clk
0:02:33.2]} 13. Nd2 {[%clk 0:02:07]} 13... Nxd5 {[%clk 0:02:01.6]} 14. cxd5
{[%clk 0:02:07.9]} 14... Nb4 {[%clk 0:02:01.6]} 15. d6 {[%clk 0:02:07.6]} 15...
Rxd6 {[%clk 0:02:01.4]} 16. Bxa8 {[%clk 0:01:24.3]} 16... Qxa8 {[%clk
0:02:02.3]} 17. f3 {[%clk 0:01:19.9]} 17... Bh3 {[%clk 0:02:01.6]} 18. Re1
{[%clk 0:01:14]} 18... Nxa2 {[%clk 0:01:57.6]} 19. Rc2 {[%clk 0:01:14.4]} 19...
Nb4 {[%clk 0:01:47.6]} 20. Rc4 {[%clk 0:01:13.3]} 20... Be6 {[%clk 0:01:37.5]}
21. Rh4 {[%clk 0:01:01.9]} 21... Nd5 {[%clk 0:01:15.1]} 22. Bf2 {[%clk
0:00:57.7]} 22... Nc3 {[%clk 0:01:08]} 23. Qc2 {[%clk 0:00:51.5]} 23... Qd8
{[%clk 0:01:04.7]} 24. Nc4 {[%clk 0:00:43.7]} 24... Bxc4 {[%clk 0:00:57.1]} 25.
Rxc4 {[%clk 0:00:44.6]} 25... Rd2 {[%clk 0:00:55.1]} 26. Rxc3 {[%clk 0:00:36.9]}
26... Rxc2 {[%clk 0:00:53.2]} 27. Rxc2 {[%clk 0:00:37.8]} 27... Qd5 {[%clk
0:00:43.1]} 28. Rb1 {[%clk 0:00:37.7]} 28... h5 {[%clk 0:00:39.1]} 29. Kg2
{[%clk 0:00:32.4]} 29... a5 {[%clk 0:00:33]} 30. Rc4 {[%clk 0:00:32.2]} 30...
Qd2 {[%clk 0:00:30.2]} 31. Kf1 {[%clk 0:00:29.3]} 31... Qa2 {[%clk 0:00:25.7]}
32. Rcc1 {[%clk 0:00:29.7]} 32... e6 {[%clk 0:00:22.1]} 33. Be1 {[%clk
0:00:27.8]} 33... Bd4 {[%clk 0:00:16.6]} 34. h4 {[%clk 0:00:24.7]} 34... Be3
{[%clk 0:00:16.5]} 35. Rd1 {[%clk 0:00:24.5]} 35... Qc2 {[%clk 0:00:16.3]} 36.
Bf2 {[%clk 0:00:21.6]} 36... Bxf2 {[%clk 0:00:13.5]} 37. Kxf2 {[%clk 0:00:22.5]}
37... Kg7 {[%clk 0:00:14.1]} 38. Rdc1 {[%clk 0:00:22.3]} 38... Qa2 {[%clk
0:00:14.2]} 39. Rd1 {[%clk 0:00:20.6]} 39... a4 {[%clk 0:00:12.1]} 40. bxa4
{[%clk 0:00:20.7]} 40... Qxa4 {[%clk 0:00:13]} 41. Rdc1 {[%clk 0:00:18.5]} 41...
b5 {[%clk 0:00:12.1]} 42. Kf1 {[%clk 0:00:16.9]} 42... c4 {[%clk 0:00:10.9]} 43.
Rb2 {[%clk 0:00:16.2]} 43... Qa3 {[%clk 0:00:06.9]} 44. Rbc2 {[%clk 0:00:14.5]}
44... Qd6 {[%clk 0:00:05.1]} 45. Rb1 {[%clk 0:00:13.5]} 45... Qe5 {[%clk
0:00:01.2]} 46. Kf2 {[%clk 0:00:13.1]} 1-0

[Event "Early-Titled-Tuesday-Blitz-October-03-2023"]
[Site "Chess.com"]
[Date "2023.10.03"]
[Round "9"]
[White "vedantgoswami"]
[Black "LaPiToB"]
[Result "1-0"]
[WhiteElo "2402"]
[BlackElo "2285"]
[TimeControl "180+1"]
[EndTime "9:46:41 PDT"]
[Termination "vedantgoswami won on time"]

1. c3 {[%clk 0:03:00.9]} 1... Nf6 {[%clk 0:02:58.7]} 2. d4 {[%clk 0:03:01.8]}
2... d5 {[%clk 0:02:53.1]} 3. Bf4 {[%clk 0:03:01]} 3... c5 {[%clk 0:02:48.3]} 4.
e3 {[%clk 0:02:56.8]} 4... Nc6 {[%clk 0:02:46.9]} 5. Nd2 {[%clk 0:02:56.2]} 5...
g6 {[%clk 0:02:39.8]} 6. Ngf3 {[%clk 0:02:55.5]} 6... Bg7 {[%clk 0:02:39.4]} 7.
h3 {[%clk 0:02:55.9]} 7... O-O {[%clk 0:02:39]} 8. Bd3 {[%clk 0:02:48.8]} 8...
e6 {[%clk 0:02:32.8]} 9. dxc5 {[%clk 0:02:46.4]} 9... Re8 {[%clk 0:02:25.6]} 10.
Bd6 {[%clk 0:02:42.5]} 10... e5 {[%clk 0:02:21.5]} 11. e4 {[%clk 0:02:41]} 11...
dxe4 {[%clk 0:01:38.3]} 12. Nxe4 {[%clk 0:02:39.8]} 12... Nxe4 {[%clk 0:01:33]}
13. Bxe4 {[%clk 0:02:40.2]} 13... Be6 {[%clk 0:01:31.4]} 14. Bd5 {[%clk
0:02:23]} 14... Bxd5 {[%clk 0:01:17]} 15. Qxd5 {[%clk 0:02:21.9]} 15... e4
{[%clk 0:01:14.9]} 16. Ng5 {[%clk 0:02:19.8]} 16... Qd7 {[%clk 0:00:50]} 17.
O-O-O {[%clk 0:02:14.5]} 17... h6 {[%clk 0:00:45.5]} 18. Nxe4 {[%clk 0:02:11.6]}
18... Rad8 {[%clk 0:00:39]} 19. Rhe1 {[%clk 0:02:09.5]} 19... Kh7 {[%clk
0:00:34.8]} 20. h4 {[%clk 0:02:04]} 20... Qg4 {[%clk 0:00:33.2]} 21. f3 {[%clk
0:01:59.7]} 21... Qd7 {[%clk 0:00:30.5]} 22. h5 {[%clk 0:01:58.6]} 22... g5
{[%clk 0:00:28.4]} 23. g4 {[%clk 0:01:56.7]} 23... Re6 {[%clk 0:00:26.1]} 24.
Qf5+ {[%clk 0:01:53.9]} 24... Kg8 {[%clk 0:00:25.3]} 25. Rd3 {[%clk 0:01:41.3]}
25... Ne5 {[%clk 0:00:19]} 26. Rd5 {[%clk 0:01:28.4]} 26... Nc4 {[%clk
0:00:18.3]} 27. Rdd1 {[%clk 0:01:12.6]} 27... Qa4 {[%clk 0:00:17.5]} 28. Nd2
{[%clk 0:00:52.2]} 28... Nxb2 {[%clk 0:00:13.7]} 29. Kxb2 {[%clk 0:00:47.1]}
29... Qb4+ {[%clk 0:00:13.9]} 30. Nb3 {[%clk 0:00:38.2]} 30... Qxc3+ {[%clk
0:00:13.8]} 31. Ka3 {[%clk 0:00:37.7]} 31... Qb2+ {[%clk 0:00:10.2]} 32. Kb4
{[%clk 0:00:36.1]} 32... Bc3+ {[%clk 0:00:09.3]} 33. Kc4 {[%clk 0:00:35.2]}
33... b5+ {[%clk 0:00:09.4]} 34. cxb6 {[%clk 0:00:34.1]} 34... axb6 {[%clk
0:00:07.7]} 35. Rxe6 {[%clk 0:00:33.1]} 35... Rc8+ {[%clk 0:00:06.6]} 36. Kb5
{[%clk 0:00:30.9]} 36... Bg7 {[%clk 0:00:03.4]} 37. Re7 {[%clk 0:00:19.2]} 37...
Rf8 {[%clk 0:00:02.3]} 38. Be5 {[%clk 0:00:15.2]} 38... Qxa2 {[%clk 0:00:02.6]}
39. Bxg7 {[%clk 0:00:11.9]} 39... Qxb3+ {[%clk 0:00:02.8]} 40. Kc6 {[%clk
0:00:11.7]} 40... Kxg7 {[%clk 0:00:03.3]} 41. Qe5+ {[%clk 0:00:11]} 41... Kg8
{[%clk 0:00:03.5]} 42. Rdd7 {[%clk 0:00:10.4]} 42... Qc4+ {[%clk 0:00:03.4]} 43.
Kb7 {[%clk 0:00:09.7]} 43... Qc8+ {[%clk 0:00:02.4]} 44. Kxb6 {[%clk 0:00:08.7]}
1-0

[Event "Early-Titled-Tuesday-Blitz-October-03-2023"]
[Site "Chess.com"]
[Date "2023.10.03"]
[Round "9"]
[White "Flaccidmoves"]
[Black "Maxfan2008"]
[Result "0-1"]
[WhiteElo "2456"]
[BlackElo "2573"]
[TimeControl "180+1"]
[EndTime "9:46:42 PDT"]
[Termination "Maxfan2008 won on time"]

1. c4 {[%clk 0:03:00.9]} 1... c6 {[%clk 0:02:59.7]} 2. d4 {[%clk 0:03:00.5]}
2... d5 {[%clk 0:02:59.1]} 3. cxd5 {[%clk 0:03:01.1]} 3... cxd5 {[%clk
0:02:58.6]} 4. Bg5 {[%clk 0:03:01.8]} 4... Nc6 {[%clk 0:02:58.2]} 5. Nc3 {[%clk
0:03:01.7]} 5... f6 {[%clk 0:02:51]} 6. Bd2 {[%clk 0:03:00.5]} 6... Bf5 {[%clk
0:02:44.7]} 7. Nf3 {[%clk 0:02:40.3]} 7... e5 {[%clk 0:02:35.8]} 8. e3 {[%clk
0:02:12.5]} 8... e4 {[%clk 0:02:23.4]} 9. Ng1 {[%clk 0:02:08]} 9... Nge7 {[%clk
0:02:09.9]} 10. Nge2 {[%clk 0:02:04.9]} 10... g6 {[%clk 0:02:03.6]} 11. Nf4
{[%clk 0:02:03.3]} 11... Bh6 {[%clk 0:01:59.2]} 12. g3 {[%clk 0:01:57.7]} 12...
O-O {[%clk 0:01:55.7]} 13. h4 {[%clk 0:01:50.5]} 13... Bxf4 {[%clk 0:01:49.8]}
14. gxf4 {[%clk 0:01:50.2]} 14... h5 {[%clk 0:01:49.1]} 15. Rg1 {[%clk
0:01:45.7]} 15... Kh7 {[%clk 0:01:45.3]} 16. Be2 {[%clk 0:01:40.2]} 16... Qe8
{[%clk 0:01:43.1]} 17. Qb3 {[%clk 0:01:32.1]} 17... Be6 {[%clk 0:01:35.2]} 18.
Nxe4 {[%clk 0:01:29.3]} 18... Rb8 {[%clk 0:01:25.9]} 19. Nc5 {[%clk 0:01:24.9]}
19... Bf5 {[%clk 0:01:24]} 20. Bd3 {[%clk 0:01:03.9]} 20... b6 {[%clk
0:01:13.5]} 21. Na6 {[%clk 0:01:01.3]} 21... Rc8 {[%clk 0:01:11.8]} 22. Kf1
{[%clk 0:00:32.8]} 22... Qd7 {[%clk 0:01:04.8]} 23. Rg3 {[%clk 0:00:30.2]} 23...
Bxd3+ {[%clk 0:00:56.2]} 24. Qxd3 {[%clk 0:00:31.1]} 24... Nf5 {[%clk
0:00:56.6]} 25. Rg1 {[%clk 0:00:29.8]} 25... Nxh4 {[%clk 0:00:53.6]} 26. Rc1
{[%clk 0:00:22.5]} 26... Qh3+ {[%clk 0:00:47.9]} 27. Ke2 {[%clk 0:00:22.9]}
27... Qf3+ {[%clk 0:00:45.8]} 28. Kf1 {[%clk 0:00:17.7]} 28... Rfe8 {[%clk
0:00:35.3]} 29. Rg3 {[%clk 0:00:17.2]} 29... Qh1+ {[%clk 0:00:32.7]} 30. Ke2
{[%clk 0:00:17.6]} 30... Qh2 {[%clk 0:00:31.7]} 31. Rcg1 {[%clk 0:00:12.3]}
31... Re4 {[%clk 0:00:29.5]} 32. Nb4 {[%clk 0:00:10.8]} 32... Nxb4 {[%clk
0:00:25.1]} 33. Bxb4 {[%clk 0:00:10.4]} 33... Nf5 {[%clk 0:00:18.6]} 34. Bc3
{[%clk 0:00:09.6]} 34... Nxg3+ {[%clk 0:00:15.1]} 35. Rxg3 {[%clk 0:00:10.5]}
35... Rce8 {[%clk 0:00:14.2]} 36. Kf3 {[%clk 0:00:09]} 36... Qh1+ {[%clk
0:00:14]} 37. Ke2 {[%clk 0:00:09.2]} 37... Qh2 {[%clk 0:00:12.7]} 38. Qb5 {[%clk
0:00:07.9]} 38... R8e7 {[%clk 0:00:12.3]} 39. Qxd5 {[%clk 0:00:07.8]} 39... h4
{[%clk 0:00:10]} 40. Rf3 {[%clk 0:00:07.5]} 40... Qg2 {[%clk 0:00:09.9]} 41. Qd6
{[%clk 0:00:07.4]} 41... Qg4 {[%clk 0:00:08.6]} 42. Qxf6 {[%clk 0:00:07.1]}
42... Qf5 {[%clk 0:00:08.2]} 43. Qxh4+ {[%clk 0:00:06.3]} 43... Kg7 {[%clk
0:00:07]} 44. d5+ {[%clk 0:00:06.9]} 44... Kf8 {[%clk 0:00:06.2]} 45. Qh7 {[%clk
0:00:07.5]} 45... Rxh7 {[%clk 0:00:05.8]} 0-1